Cogmind - Beta 16 @@@ ROGUE MODE // 2025.11.12 @ 21:23:31 Player: Conlarando Result: Destroyed by S-27 Virus with Autogun Performance ------------- Evolutions (5) 2500 Regions Visited (6) 1200 Robots Destroyed (112) 560 Value Destroyed (2898) 2898 Prototype IDs (7) 140 Alien Tech Used (0) 0 Bonus (0) 0 TOTAL SCORE: 7298 Bonus ------- None Cogmind --------- Core Integrity 0/1000 Matter 300/300 Energy 49/100 System Corruption 0% Temperature Cool (0) Movement Core (50) Location -5/Factory Parts ------- > --- POWER (1) -------- (None) > --- PROPULSION (4) --- (None) > --- UTILITY (10) ----- Gravity Neutralizer Improved Signal Interpreter Utility Shielding Hacking Suite Hacking Suite Improved Hacking Suite System Shield > --- WEAPON (2) ------- (None) > --- INVENTORY (5) ---- Improved Signal Interpreter Improved Signal Interpreter System Shield Peak State ------------ > --- POWER ------------ (None) > --- PROPULSION ------- Improved Hover Unit Improved Hover Unit Xenon Bombardment Thruster > --- UTILITY ---------- Structural Scanner Improved Sensor Array Improved Signal Interpreter Utility Shielding Hacking Suite Hacking Suite Hacking Suite System Shield System Shield Improved System Shield > --- WEAPON ----------- Mini Grenade Launcher Katana > --- INVENTORY -------- Improved Signal Interpreter Improved Signal Interpreter Utility Shielding Improved Hacking Suite [Rating: 42] Favorites ----------- Power Reinforced Ion Engine Engine Reinforced Ion Engine Power Core Light Nuclear Core Propulsion Light Treads Treads Light Treads Hover Unit Improved Hover Unit Flight Unit Xenon Bombardment Thruster Utility High-capacity Storage Unit Device Heat Sink Storage High-capacity Storage Unit Processor Targeting Computer Hackware Hacking Suite Protection Light Armor Plating Weapon Light Assault Rifle Energy Gun Medium Laser Ballistic Gun Light Assault Rifle Ballistic Cannon Flak Cannon Launcher Mini Grenade Launcher Slashing Weapon Katana Build | -11 -10 -9 -8 -7 -6 -5 ------- Run | Yrd Mat Mat Mat Fac Fac Fac Slots Evolved 10 | . . 2 2 2 2 2 Power . | . . . . . . . Propulsion 2 | . . . . . 1 1 Utility 8 | . . 2 2 2 1 1 Weapon . | . . . . . . . Parts Attached 90 | 6 9 24 25 13 6 7 Power 10 | 1 2 3 3 1 . . Engine 8 | 1 2 3 2 . . . Core 2 | . . . 1 1 . . Reactor . | . . . . . . . Propulsion 19 | 2 . 7 4 3 . 3 Treads 13 | 2 . 7 4 . . . Leg . | . . . . . . . Wheel . | . . . . . . . Hover 2 | . . . . . . 2 Flight 4 | . . . . 3 . 1 Utility 43 | 1 4 9 10 9 6 4 Device 12 | . 1 3 3 1 2 2 Storage 3 | 1 2 . . . . . Processor 7 | . 1 . 2 3 1 . Hackware 8 | . . . . 4 2 2 Protection 13 | . . 6 5 1 1 . Artifact . | . . . . . . . Weapon 18 | 2 3 5 8 . . . Energy Gun 3 | 2 1 . . . . . Energy Cannon . | . . . . . . . Ballistic Gun 11 | . 2 5 4 . . . Ballistic Cannon 2 | . . . 2 . . . Launcher 1 | . . . 1 . . . Special Weapon . | . . . . . . . Impact Weapon . | . . . . . . . Slashing Weapon 1 | . . . 1 . . . Piercing Weapon . | . . . . . . . Special Melee Weapon . | . . . . . . . Unidentified Prototypes 4 | . . 1 2 . . 1 Parts Lost 41 | . 4 9 10 3 2 13 Power 6 | . 2 2 1 1 . . Propulsion 9 | . 1 1 2 . 1 4 Utility 19 | . . 5 4 2 1 7 Weapon 7 | . 1 1 3 . . 2 Highest Loss Streak 6 | . 1 3 4 2 1 6 To Critical Strikes 2 | . 1 1 . . . . Average Backups 15 | . 13 18 19 5 4 4 Power 1 | . 1 1 . . . . Propulsion 3 | . 1 5 3 . . . Utility 9 | . 8 10 11 3 3 4 Weapon 1 | . 1 1 2 1 1 . Tool/Special . | . . . . . . . Unused Backups 24 | . 2 4 8 7 . 3 Power 2 | . . 1 1 . . . Propulsion 7 | . 1 1 3 2 . . Utility 14 | . 1 2 3 5 . 3 Weapon 1 | . . . 1 . . . Tool/Special . | . . . . . . . Average Slot Usage (%) 92 | . 89 96 97 87 73 71 Engine 9 | . 13 10 8 . . . Treads 16 | . 20 20 17 . . . Flight 1 | . . . . 13 6 3 Device 9 | . . 13 12 14 10 8 Storage 9 | . 14 11 9 . . . Processor 9 | . 10 2 14 21 11 5 Hackware 3 | . . . . 17 28 32 Protection 9 | . . 15 15 2 6 4 Energy Gun 1 | . 5 . . . . . Ballistic Gun 17 | . 22 21 16 . . . Peak Build Rating 42 | 6 9 19 28 34 34 42 Average Rating 17 | 4 7 14 24 30 32 35 On Entrance 17 | . 6 8 19 28 26 33 Avg Prop Armor Cover (%) 17 | . . . . 9 9 19 Naked Turns . | . . . . . . . Heaviest Build 70 | 12 47 63 70 60 5 6 Greatest Support 46 | 40 40 46 46 44 6 12 Greatest Overweight (x) 3 | 3 2 2 2 2 1 1 Average Overweight (x) . | . . 1 1 . . . Largest Inventory Capacity 20 | 8 20 20 20 20 5 5 Average Capacity 17 | 7 17 20 20 5 5 5 Most Carried 20 | 2 20 20 20 20 5 5 Average Carried 15 | . 13 18 19 4 4 4 Final Capacity 20 | 8 20 20 20 5 5 5 Final Carried 20 | 2 20 20 20 4 5 3 Class Distribution -------------------- 58% | Mutant 26% | Scavenger-Mutant 9% | Hacker-Scout Dominant Class ---------------- Mutant | -10/Materials Scavenger-Mutant | -9/Materials Mutant | -8/Materials Hacker-Scout | -7/Factory Hacker-Scout | -6/Factory Wizard-Scout | -5/Factory Resources | -11 -10 -9 -8 -7 -6 -5 ----------- Run | Yrd Mat Mat Mat Fac Fac Fac Matter Collected 2781 | 181 312 1135 886 125 42 100 Remotely . | . . . . . . . Salvage Created 4236 | . 747 1967 1173 175 37 137 Parts 257 | . 38 115 74 14 3 13 Haulers Intercepted 9 | . 2 3 3 1 . . Recyclers Shooed 4 | . . 3 1 . . . Parts Field Recycled . | . . . . . . . Retrieved Matter . | . . . . . . . Parts Self-Destructed . | . . . . . . . Prevented . | . . . . . . . Parts Restored . | . . . . . . . Kills | -11 -10 -9 -8 -7 -6 -5 ------- Run | Yrd Mat Mat Mat Fac Fac Fac Combat Hostiles Destroyed 64 | . 13 28 18 . . 5 Melee 1 | . . . . . . 1 Guns 55 | . 12 28 15 . . . Cannons 3 | . . . 3 . . . AOE 4 | . . . . . . 4 Classes Destroyed 12 | . 7 2 2 . . 1 Worker 3 | . 1 . . 1 1 . Builder 2 | . . . 1 . . 1 Hauler 9 | . 2 3 3 1 . . Recycler 11 | . 2 6 3 . . . Operator 9 | . 2 3 1 1 1 1 Watcher 14 | . 3 5 4 2 . . Swarmer 14 | . 6 1 3 . . 4 Grunt 32 | . 7 17 8 . . . Brawler 2 | . . 2 . . . . Sentry 14 | . . 8 6 . . . Hunter 1 | . . . . . . 1 Heavy 1 | . . . 1 . . . Best Kill Streak 5 | . 3 5 5 2 1 4 Combat Bots Only 4 | . 3 3 3 . . 4 Max Kills in Single Turn 3 | . 1 1 1 1 1 3 Gunslinging . | . . . . . . . Exploded 3 | . . . . . . 3 Melee 1 | . . . . . . 1 Uniques/NPCs Destroyed . | . . . . . . . Combat | -11 -10 -9 -8 -7 -6 -5 -------- Run | Yrd Mat Mat Mat Fac Fac Fac Hostile Shots Fired 623 | . 74 163 124 49 81 132 Missed 221 | . 15 53 31 19 50 53 Hits 402 | . 59 110 93 30 31 79 Melee 6 | . . 6 . . . . Projectile 396 | . 59 104 93 30 31 79 AOE 2 | . . . . . . 2 Critical Strikes 8 | . 1 3 4 . . . Damage Taken 5866 | . 621 1474 1631 378 378 1384 Core 2187 | . 142 233 298 212 291 1011 Absorbed by Shields . | . . . . . . . Redirected to Shielding 147 | . . . 74 16 11 46 Ignored by Resistances 3 | . . . 3 . . . Regen/Repaired (Parts) 17 | . . . . . 17 . Core Remaining (%) 60 | 100 43 41 45 69 65 . Volleys Fired 327 | . 92 150 80 . . 5 Largest 2 | . 2 2 2 . . 1 Hottest 100 | . 100 46 74 . . 30 Shots Fired 647 | . 184 298 160 . . 5 Gun 601 | . 184 298 119 . . . Cannon 38 | . . . 38 . . . Launcher 8 | . . . 3 . . 5 Special . | . . . . . . . Kinetic 565 | . 110 298 157 . . . Thermal 74 | . 74 . . . . . Explosive 8 | . . . 3 . . 5 Electromagnetic . | . . . . . . . Robot Hit Streak 23 | . 9 23 19 . . 7 Robot Miss Streak 7 | . 7 3 4 . . 1 Penetration Max . | . . . . . . . Secondary Targets 3 | . 1 2 . . . . Max Gunslinging Chain 1 | . 1 1 . . . . Shots Hit Robots 490 | . 112 222 131 11 3 11 Core Hits 217 | . 49 77 72 5 2 12 Critical Kills . | . . . . . . . Critical Parts Destroyed 3 | . . 2 1 . . . Critical Strikes 11 | . 5 2 1 1 . 2 Burn 5 | . 5 . . . . . Destroy 3 | . . 2 1 . . . Sever 3 | . . . . 1 . 2 Melee Attacks 71 | . . . 1 29 20 21 Impact . | . . . . . . . Slashing 71 | . . . 1 29 20 21 Piercing . | . . . . . . . Sneak Attacks 6 | . . . . 3 1 2 Combat Hostiles . | . . . . . . . Follow-up Attacks . | . . . . . . . Damage Inflicted 7467 | . 1045 2855 2059 521 168 819 Guns 5231 | . 1045 2853 1333 . . . Cannons 531 | . . . 531 . . . Explosions 591 | . . . 189 . . 402 Melee 1074 | . . . . 521 168 385 Ramming 40 | . . 2 6 . . 32 Kinetic 5230 | . 513 2853 1864 . . . Thermal 532 | . 532 . . . . . Explosive 591 | . . . 189 . . 402 Electromagnetic . | . . . . . . . Impact . | . . . . . . . Slashing 1074 | . . . . 521 168 385 Piercing . | . . . . . . . Highest Corruption 9 | . 1 9 1 . 1 . Average Corruption 4 | . 1 7 1 . 1 . Corruption Purged 1 | . . . 1 . . . Corruption Blocked . | . . . . . . . Effects 85 | . 9 74 2 . . . Message Errors 23 | . 1 20 2 . . . Matter Fused 16 | . 2 14 . . . . Heat Flow Errors 11 | . 2 9 . . . . Energy Discharges 6 | . 2 4 . . . . Parts Rejected 2 | . . 2 . . . . Parts Fused 4 | . . 4 . . . . Data Loss (minor) 9 | . . 9 . . . . Data Loss (major) 4 | . . 4 . . . . Misfires 4 | . 1 3 . . . . Weapon Failures 6 | . 1 5 . . . . Overload Shots . | . . . . . . . Overflow Damage 97 | . . . 16 33 10 38 Projectiles . | . . . . . . . Explosions 23 | . . . 16 . . 7 Melee 74 | . . . . 33 10 31 Knockbacks 19 | . . . 19 . . . Impact . | . . . . . . . Kinetic 19 | . . . 19 . . . Secondary . | . . . . . . . Self-Inflicted Damage 207 | . . . 99 . . 108 Shots 5 | . . . 3 . . 2 Rammed 11 | . . 1 1 . . 9 Targets Rammed 11 | . . 1 1 . . 9 Kicked . | . . . . . . . Crushed . | . . . . . . . Highest Temperature 327 | . 327 234 138 2 . . Average Temperature 69 | . 102 58 31 2 . . Received Heat Transfer 1425 | . 153 570 486 123 42 51 Effects 1 | . 1 . . . . . Energy Bleed 1 | . 1 . . . . . Siege Activations . | . . . . . . . Martial Activations . | . . . . . . . Shielding Activations . | . . . . . . . Robots Disrupted . | . . . . . . . Combat Hostiles . | . . . . . . . Robots Corrupted . | . . . . . . . Combat Hostiles . | . . . . . . . Parts Fried . | . . . . . . . Impact Corruptions . | . . . . . . . Robots Melted 1 | . 1 . . . . . Combat Hostiles 1 | . 1 . . . . . Parts Melted . | . . . . . . . Heat Transferred 1889 | . 1889 . . . . . Parts Sabotaged . | . . . . . . . Parts Stolen . | . . . . . . . Parts Stripped . | . . . . . . . Power Chain Reactions . | . . . . . . . Alert | -11 -10 -9 -8 -7 -6 -5 ------- Run | Yrd Mat Mat Mat Fac Fac Fac Maximum Alert Level 1 | . . 1 . . . 1 Low Security (%) 90 | 100 100 72 100 100 100 86 Level 1 9 | . . 27 . . . 13 Level 2 . | . . . . . . . Level 3 . | . . . . . . . Level 4 . | . . . . . . . Level 5 . | . . . . . . . High Security . | . . . . . . . Max Security . | . . . . . . . Peak Influence 336 | . 150 336 168 123 82 307 Initial 141 | . . . 141 46 46 6 Average 67 | . 27 114 65 37 34 63 Influence Increases 2939 | . 426 880 646 337 148 502 Destroy 0b10 Robot/C 1280 | . 260 560 360 . . 100 Destroy 0b10 Robot/NC 240 | . 50 85 60 25 10 10 Destroy Leader 396 | . 70 176 124 6 . 20 Successful Hack 100 | . 15 7 18 24 36 . Disable Machine 150 | . . . 30 . 15 105 Destroy Structure 218 | . 1 7 24 12 12 162 Partial Spotted 15 | . . . . 15 . . Lose Combat Pursuer 540 | . 30 45 30 255 75 105 Influence Decreases 2837 | . 426 545 879 343 230 414 Entered New Map 308 | . . . 194 56 50 8 Time Decay 1952 | . 396 485 585 190 160 136 Lost Part 360 | . 30 60 100 30 20 120 Purge Threat 217 | . . . . 67 . 150 Squads Dispatched 25 | . 4 6 3 4 6 2 Investigation 11 | . 3 3 2 2 . 1 Extermination 3 | . . . . 1 2 . Reinforcement 11 | . 1 3 1 1 4 1 Assault . | . . . . . . . Garrison . | . . . . . . . Intercept . | . . . . . . . Searches Triggered . | . . . . . . . Construction Impeded . | . . . . . . . Haulers Reinforced . | . . . . . . . Active Scanning Responses . | . . . . . . . Cargo Convoy Interrupts . | . . . . . . . Stealth | -11 -10 -9 -8 -7 -6 -5 --------- Run | Yrd Mat Mat Mat Fac Fac Fac Distress Signals 9 | . . 3 3 1 . 2 Communications Jammed . | . . . . . . . Distress Signals . | . . . . . . . Times Spotted 178 | . 26 54 32 23 14 29 Peak Tracking Total 12 | . 3 4 7 10 5 12 Tactical Retreats 19 | . 2 2 1 7 4 3 Traps | -11 -10 -9 -8 -7 -6 -5 ------- Run | Yrd Mat Mat Mat Fac Fac Fac Traps Triggered 10 | . 3 3 1 2 1 . Indirectly . | . . . . . . . Trap Hack Attempts . | . . . . . . . Triggered . | . . . . . . . Disarmed . | . . . . . . . Reprogrammed . | . . . . . . . Reused . | . . . . . . . Traps Extracted . | . . . . . . . Installed . | . . . . . . . Triggered . | . . . . . . . Machines | -11 -10 -9 -8 -7 -6 -5 ---------- Run | Yrd Mat Mat Mat Fac Fac Fac Machines Disabled 10 | . . . 2 . 1 7 Max in Single Turn 6 | . . . 1 . 1 6 Garrison Access 1 | . . . . 1 . . Machines Repaired . | . . . . . . . Machines Dismantled . | . . . . . . . Machines Sabotaged . | . . . . . . . Overloaded Fab Kills . | . . . . . . . Hacking | -11 -10 -9 -8 -7 -6 -5 --------- Run | Yrd Mat Mat Mat Fac Fac Fac Machines Accessed 34 | . 5 8 6 11 2 2 Terminals 22 | . 3 5 4 7 1 2 Fabricators . | . . . . . . . Repair Stations 1 | . . . . . 1 . Recycling Units 6 | . 2 1 1 2 . . Scanalyzers 3 | . . 2 1 . . . Garrison Access 2 | . . . . 2 . . Total Hacks 113 | . 15 25 27 30 8 8 Successful 54 | . 6 13 16 13 2 4 Failed 59 | . 9 12 11 17 6 4 Catastrophic 11 | . . 1 2 7 1 . Database Lockouts . | . . . . . . . Manual 22 | . 2 1 2 13 1 3 Terminals 72 | . 10 14 13 22 5 8 Fabricators . | . . . . . . . Repair Stations 3 | . . . . . 3 . Recycling Units 15 | . 5 3 3 4 . . Scanalyzers 19 | . . 8 11 . . . Garrison Access 4 | . . . . 4 . . Terminal Hacks 29 | . 5 6 5 9 . 4 Prototype ID Bank 2 | . 1 1 . . . . Emergency Access Points 4 | . . 2 1 . . 1 Alert Level 6 | . 1 . 2 2 . 1 Unreport Threat 2 | . . . . 1 . 1 Locate Traps 2 | . . . . 1 . 1 Security Status 1 | . . . 1 . . . Transport Status 1 | . . 1 . . . . Recall Investigation 1 | . . . . 1 . . Recall Extermination 1 | . . . . 1 . . Hauler Manifests 4 | . 2 1 . 1 . . Registered Prototypes 1 | . . . 1 . . . Zone Layout 4 | . 1 1 . 2 . . Fabricator Hacks . | . . . . . . . Repair Station Hacks 2 | . . . . . 2 . Scan Component 1 | . . . . . 1 . Repair 1 | . . . . . 1 . Recycling Unit Hacks 5 | . 1 . 1 3 . . Retrieve Matter 1 | . . . . 1 . . Retrieve Components 4 | . 1 . 1 2 . . Scanalyzer 17 | . . 7 10 . . . Insert Component 7 | . . 3 4 . . . Analyze 9 | . . 3 6 . . . Retrieve Study 1 | . . 1 . . . . Garrison Access Hacks 1 | . . . . 1 . . Seal Access 1 | . . . . 1 . . Unauthorized Hacks . | . . . . . . . Terminals . | . . . . . . . Fabricators . | . . . . . . . Repair Stations . | . . . . . . . Recycling Units . | . . . . . . . Scanalyzers . | . . . . . . . Garrison Access . | . . . . . . . Data Cores Recovered 1 | . . . . 1 . . Used . | . . . . . . . Hacking Detections 29 | . 5 7 6 8 2 1 Full Trace Events 11 | . 3 3 2 2 . 1 Feedback Events 1 | . . . . 1 . . Hackware Fried 1 | . . . . 1 . . Feedback Blocked . | . . . . . . . Robot Schematics Acquired . | . . . . . . . Robots Built . | . . . . . . . Authchips . | . . . . . . . Time . | . . . . . . . Total Robot Build Rating . | . . . . . . . Part Schematics Acquired 7 | . . 3 4 . . . Parts Built . | . . . . . . . Authchips . | . . . . . . . Time . | . . . . . . . Total Part Build Rating . | . . . . . . . Part Studies Acquired 1 | . . 1 . . . . Parts Repaired 1 | . . . . . 1 . Time 12 | . . . . . 12 . Parts Recycled . | . . . . . . . Recycled Matter . | . . . . . . . Retrieved Matter . | . . . . . . . Retrieved Components 21 | . 9 . 9 3 . . Parts Scanalyzed 7 | . . 3 4 . . . Part Schematics Acquired 7 | . . 3 4 . . . Parts Damaged 2 | . . 1 1 . . . Bothacking | -11 -10 -9 -8 -7 -6 -5 ------------ Run | Yrd Mat Mat Mat Fac Fac Fac Used RIF Installer . | . . . . . . . Robots Hacked . | . . . . . . . Non-combat . | . . . . . . . Combat . | . . . . . . . Robot Hacks Applied . | . . . . . . . Relay Couplers Released . | . . . . . . . Fabnet Peak Effective % . | . . . . . . . Robots Rewired . | . . . . . . . Allies Hacked . | . . . . . . . Hacks Repelled . | . . . . . . . Allies | -11 -10 -9 -8 -7 -6 -5 -------- Run | Yrd Mat Mat Mat Fac Fac Fac Total Allies . | . . . . . . . Largest Group . | . . . . . . . Highest-Rated Group . | . . . . . . . Highest-Rated Ally . | . . . . . . . Total Orders . | . . . . . . . Ally Attacks . | . . . . . . . Total Damage . | . . . . . . . Kills . | . . . . . . . Allies Corrupted . | . . . . . . . Allies Melted . | . . . . . . . Intel | -11 -10 -9 -8 -7 -6 -5 ------- Run | Yrd Mat Mat Mat Fac Fac Fac Active Infowar (turns) 3340 | . . . 2089 487 320 444 Optics 2402 | . . . 2089 313 . . Sensors 1011 | . . . . 454 225 332 Terrain 552 | . . . 552 . . . Structural 2928 | . . . 1677 487 320 444 Robot Analysis Total . | . . . . . . . Derelict Logs Recovered . | . . . . . . . Drone Launches . | . . . . . . . Drone Recoveries . | . . . . . . . Exploration | -11 -10 -9 -8 -7 -6 -5 ------------- Run | Yrd Mat Mat Mat Fac Fac Fac Turns Passed 8875 | 72 2437 2909 2156 487 320 494 Spaces Moved 4425 | 41 785 800 708 955 595 541 Core 113 | 17 . . . 1 1 94 Treads 2325 | 24 785 800 708 8 . . Legs . | . . . . . . . Wheels . | . . . . . . . Hover 104 | . . . . . . 104 Flight 1883 | . . . . 946 594 343 Fastest Speed 34 | 50 160 200 225 34 35 40 Average Speed 137 | 152 239 217 225 36 39 45 Slowest Speed 320 | 200 320 320 305 225 100 100 Overloaded Moves . | . . . . . . . Propulsion Burnouts . | . . . . . . . Robots Hopped 1 | . . . . 1 . . Potential Cave-ins . | . . . . . . . Cave-ins Triggered . | . . . . . . . Exploration Rate (%) 42 | 5 92 67 53 35 24 18 Regions Visited 6 Branch Regions . Pre-discovered Areas . | . . . . . . . Known Exits Taken 2 | . . . . 1 1 . Unknown Exits Taken 4 | 1 1 1 1 . . . Scrap Searched . | . . . . . . . Spaces Dug 45 | . . . 1 12 13 19 Terrain Destroyed 147 | . . . 21 12 13 101 Melee 33 | . . . 1 12 13 7 Projectile . | . . . . . . . AOE 114 | . . . 20 . . 94 Terrain Rammed . | . . . . . . . Walls Destroyed . | . . . . . . . Machines Disabled . | . . . . . . . Actions | -11 -10 -9 -8 -7 -6 -5 --------- Run | Yrd Mat Mat Mat Fac Fac Fac Total 6477 | 48 1184 1686 1110 1053 648 748 Wait 1399 | . 268 664 249 36 21 161 Move 4417 | 40 784 799 707 952 594 541 Hop 1 | . . . . 1 . . Pick Up 68 | 2 22 15 15 8 4 2 Fast Attach 63 | 6 6 18 19 7 2 5 Attach 29 | . 2 8 5 6 4 4 Detach 4 | . 1 . 2 . 1 . Swap 23 | . 4 11 7 . 1 . Drop 64 | . 5 20 24 14 1 . Fire 327 | . 92 150 80 . . 5 Melee 71 | . . . 1 29 20 21 Ram 9 | . . . . . . 9 Kick . | . . . . . . . Crush 2 | . . 1 1 . . . Escape Stasis . | . . . . . . . Rewire . | . . . . . . . Trap . | . . . . . . . Miscellaneous . | . . . . . . . Route ------- -11/Scrapyard -10/Materials (discovered 4 exits: *Mat x2 / [*Min] / [*Sub]) -9/Materials (discovered 2 exits: *Mat / [*Min]) -8/Materials -7/Factory (discovered 3 exits: *Fac x2 / *Low) -6/Factory -5/Factory History --------- Turn | Location | Event 51 | -11/Scrapyard | Discovered new exit (range 15) 73 | -11/Scrapyard | Entered Materials 310 | -10/Materials | Build established: Mutant 599 | -10/Materials | Core integrity fell below 50% 659 | -10/Materials | Discovered new exit (range 4) 1149 | -10/Materials | Discovered new exit (range 9) 1195 | -10/Materials | Discovered new exit (range 15) 1427 | -10/Materials | Discovered new exit (range 6) 2510 | -10/Materials | Entered another Materials area 2510 | -9/Materials | Evolved 2 slots: Utility x2 3197 | -9/Materials | Build established: Scavenger-Mutant 3302 | -9/Materials | Lost 3 parts (2u1w) 3653 | -9/Materials | Discovered new exit (range 7) 4654 | -9/Materials | Core integrity fell below 50% 5132 | -9/Materials | Discovered new exit (range 8) 5419 | -9/Materials | Entered another Materials area 5419 | -8/Materials | Evolved 2 slots: Utility x2 5429 | -8/Materials | Build established: Mutant 5900 | -8/Materials | Lost 4 parts (2u2w) 6028 | -8/Materials | Lost 3 parts (1p2n) 6379 | -8/Materials | Core integrity fell below 50% 6500 | -8/Materials | Discovered new exit (range 17) 7575 | -8/Materials | Entered Factory 7575 | -7/Factory | Evolved 2 slots: Utility x2 7769 | -7/Factory | Discovered new exit (range 17) 7804 | -7/Factory | Identified exit to Lower Caves 7845 | -7/Factory | Discovered new exit (range 12) 7881 | -7/Factory | Build established: Hacker-Scout 7946 | -7/Factory | Hacking Suite fried by hacking feedback 8050 | -7/Factory | Discovered new exit (range 6) 8052 | -7/Factory | Identified exit to Factory 8062 | -7/Factory | Entered another Factory area 8062 | -6/Factory | Evolved 2 slots: Propulsion x1, Utility x1 8089 | -6/Factory | Repaired Cesium-ion Thruster 8244 | -6/Factory | Spotted B-75 Beast 8318 | -6/Factory | Discovered new exit (range 6) 8320 | -6/Factory | Identified exit to Factory 8382 | -6/Factory | Entered another Factory area 8382 | -5/Factory | Evolved 2 slots: Propulsion x1, Utility x1 8770 | -5/Factory | Lost 4 parts (3n1u) 8839 | -5/Factory | Core integrity fell below 50% 8860 | -5/Factory | Lost 6 parts (1n3u2w) 8865 | -5/Factory | Core integrity fell below 20% 8876 | -5/Factory | Destroyed by S-27 Virus with Autogun Last Messages --------------- 08813_ Imp. Hover Unit destroyed. 08818_ Slammed into K-01 Serf. 08826_ Structural Scanner destroyed. 08829_ Hacking Suite destroyed. 08831_ Slammed into S-27 Virus. 08841_ ALERT: Cargo convoy en route, clear transfer corridor. 08849_ Slammed into A-15 Conveyor. 08850_ Slammed into K-01 Serf. 08860_ K-01 Serf cleans the Assembly Bed. 08861_ Acquired Prototype Device. 08861_ Identified Gravity Neutralizer. 08864_ K-01 Serf destroyed. 08865_ S-27 Virus destroyed. 08865_ R-10 Processor collects Lgt. Ion Engine. 08866_ R-10 Processor collects Wheel. 08867_ Adv. Weight Redist. System destroyed. 08867_ R-10 Processor collects Sml. Matter Pod. 08869_ System Shield destroyed. 08872_ Slammed into S-27 Virus. Map ----- +----------------------------------------------------+ | ????????????## " " # """ # ############## | | ############## # """ # ############## | | ######### # """ # ##???????????? | | """ ### % %/ # # # ???????????? | | R" ### ##### """""" !# + # ???????????? | | """ ### ##### """""" # !!! # # ???????????? | | ###%##?## """""" # !!! # # ???????????? | | ### ##?## """""" # !!! # # ???????????? | | ##+##### ##?## # # # ???????????? | | % ##?######+#+############ # ???????????? | | ###########?###### / ! ## # ???????????? | | + #??## # ## # ???????????? | | # #??## # """ ## # ???????????? | | # """" """" ???## # """ + # ???????????? | | # "?"" "???????## # """ ## # ???????????? | | # ""???????????## # ## # ???????????? | | # ""???????????## ###+###### ##???????????? | | # ???????????## !!= ???????????? | | # """??????????## !!= ??????????? | | #! ""???????????## """" !== ?????????? | | # ""???????????## """" w ????????? | | # "????????????## """" % ?????? | | # ?????????#??## """" ! ! ####+##+?????? | | #+##+#+#####+##### """" ## ?????? | | != """" ##???????????? | | =%= ! R R % @ ##???????????? | | ! w ##???????????? | | Rs ########## ##???????????? | | s ss% #### # ##???????????? | | """ """ """ ###s#######??????????????????????? | | """ """ """ # s #??????????????????????? | | """ """ """ # #??????????????????????? | | "" "" "" # #??????????????????????? | | "" "" "" # ! #??????????????????????? | | # #??????????????????????? | | """ """ # ! #??????????????????????? | | """ """ # #??????????????????????? | | "?" """ # #??????????????????????? | | ?" ?" ###########??????????????????????? | | ??? ??" #????????????????????????????????? | | ??? ? ?? #????????????????????????????????? | | ???????????? #????????????????????????????????? | | ???????????? ????????????????????????????????? | | ????????????####?????????????????????????????????? | | ?????????????????????????????????????????????????? | | ?????????????????????????????????????????????????? | | ?????????????????????????????????????????????????? | | ?????????????????????????????????????????????????? | | ?????????????????????????????????????????????????? | | ?????????????????????????????????????????????????? | +----------------------------------------------------+ Best States ------------- Heat Dissipation 48 Energy Generation 14 Energy Capacity 280 Matter Stores 300 Matter Capacity 300 Sight Range 18 Robot Scan Range 15 Terrain Scan Range 14 Terrain Scan Density 310 Additional Mass Support 9 Armor Coverage 300 Resistance: KI 20 Utility Shielding 33 Weapon Shielding 33 Evasion (%) 63 Targeting Accuracy 5 Recoil Reduction 2 Offensive Hacking 42 Defensive Hacking 32 Item Schematics ----------------- Hacking Suite | -9/Materials | Scanalyzed Imp. Flight Unit | -9/Materials | Scanalyzed Sensor Array | -9/Materials | Scanalyzed Imp. Terrain Scan Processor | -8/Materials | Scanalyzed Imp. Sensor Array | -8/Materials | Scanalyzed Cesium-ion Thruster | -8/Materials | Scanalyzed Utility Shielding | -8/Materials | Scanalyzed Robot Schematics ------------------ None Fabricated ------------ Nothing Repaired ---------- Cesium-ion Thruster | 32% | -6/Factory Studied --------- Lgt. Treads | -9/Materials | Hacked Alien Tech Used ----------------- None Achievements -------------- Ghost 'Em More Dakka Please Challenges ------------ None Game ------ Seed PointLightpackBeamcaster Manual? 0 Play Time 01:38:03 Cumulative 40.7 hours Start 2025.11.09 @ 14:53:15 End 2025.11.12 @ 21:23:31 Sessions 6 Manual Loads 0 Difficulty Rogue Special Mode None Game No. 51 Rogue 51 Adventurer 0 Explorer 0 Win Type - Total 1 Types 1/0/0/0/0/0/0/0/0/0 Lore% 6 Gallery% 28 Achievement% 19 Wizard Run 0 Options --------- Layout 1 ASCII 0 Keyboard 0 Movement Mouse Keybinds 0 Fullscreen 2 Font 24/Smallcaps Map View 50x35 Zoom Use 0% Tactical HUD 1 Map Filters NONE Filters NONE Steam 1 RUN: 7975ea43-0c27-4438-93d8-78fb6e29427f